[Event "Late-Titled-Tuesday-Blitz-May-28-2024"]
[Site "Chess.com"]
[Date "2024.05.28"]
[Round "11"]
[White "MaiqMaster"]
[Black "Smoking_Crow"]
[Result "1-0"]
[WhiteElo "2490"]
[BlackElo "2560"]
[TimeControl "180+1"]
[EndTime "16:04:16 PDT"]
[Termination "MaiqMaster won by resignation"]

1. e4 {[%clk 0:03:00.9]} 1... e5 {[%clk 0:02:59.9]} 2. Nf3 {[%clk 0:02:57.6]}
2... Nc6 {[%clk 0:03:00.1]} 3. Bb5 {[%clk 0:02:58]} 3... Nf6 {[%clk 0:03:00]} 4.
O-O {[%clk 0:02:56.9]} 4... Nxe4 {[%clk 0:03:00.4]} 5. d4 {[%clk 0:02:56.8]}
5... Nd6 {[%clk 0:03:01.1]} 6. Bxc6 {[%clk 0:02:57]} 6... dxc6 {[%clk 0:03:02]}
7. dxe5 {[%clk 0:02:57.8]} 7... Nf5 {[%clk 0:03:02.8]} 8. Qxd8+ {[%clk
0:02:58.2]} 8... Kxd8 {[%clk 0:03:03.7]} 9. h3 {[%clk 0:02:58.3]} 9... Ke8
{[%clk 0:03:03.7]} 10. g4 {[%clk 0:02:57]} 10... Ne7 {[%clk 0:03:03]} 11. Nc3
{[%clk 0:02:54.3]} 11... h5 {[%clk 0:03:02.9]} 12. Nh2 {[%clk 0:02:51.2]} 12...
Ng6 {[%clk 0:03:02.2]} 13. f4 {[%clk 0:02:46.9]} 13... Bc5+ {[%clk 0:03:00.7]}
14. Kg2 {[%clk 0:02:43.6]} 14... hxg4 {[%clk 0:02:58.2]} 15. hxg4 {[%clk
0:02:44.5]} 15... Bd7 {[%clk 0:02:57.4]} 16. Ne4 {[%clk 0:02:38.1]} 16... Bb6
{[%clk 0:02:57.6]} 17. c4 {[%clk 0:02:33.6]} 17... Bd4 {[%clk 0:02:55.9]} 18.
Kg3 {[%clk 0:02:19.8]} 18... c5 {[%clk 0:02:55.8]} 19. Nf3 {[%clk 0:02:18.7]}
19... Bc6 {[%clk 0:02:53.1]} 20. Nxd4 {[%clk 0:02:17]} 20... cxd4 {[%clk
0:02:52.7]} 21. Ng5 {[%clk 0:02:10.3]} 21... d3 {[%clk 0:02:34.8]} 22. Be3
{[%clk 0:02:05.6]} 22... b6 {[%clk 0:02:12.1]} 23. Rad1 {[%clk 0:02:03.8]} 23...
Rd8 {[%clk 0:02:04.1]} 24. e6 {[%clk 0:02:02.3]} 24... fxe6 {[%clk 0:02:04.3]}
25. Nxe6 {[%clk 0:02:03.2]} 25... Rd7 {[%clk 0:02:05]} 26. Bd4 {[%clk
0:01:53.2]} 26... Kf7 {[%clk 0:02:00.1]} 27. f5 {[%clk 0:01:51.3]} 27... Ne7
{[%clk 0:02:00.1]} 28. Bxg7 {[%clk 0:01:46.3]} 28... Rg8 {[%clk 0:01:56.9]} 29.
Bc3 {[%clk 0:01:39.3]} 29... b5 {[%clk 0:01:46.5]} 30. Nc5 {[%clk 0:01:30.1]}
30... Rd6 {[%clk 0:01:42.3]} 31. Nxd3 {[%clk 0:01:27.9]} 31... Kf8 {[%clk
0:01:32.1]} 32. Bb4 {[%clk 0:01:20.5]} 32... Rd4 {[%clk 0:01:28.2]} 33. Nf4
{[%clk 0:01:14.1]} 33... Rxd1 {[%clk 0:01:24.8]} 34. Rxd1 {[%clk 0:01:15]} 34...
Kf7 {[%clk 0:01:24.8]} 35. Bxe7 {[%clk 0:01:11.3]} 35... Kxe7 {[%clk 0:01:24.5]}
36. Nd5+ {[%clk 0:01:06.3]} 36... Bxd5 {[%clk 0:01:23.4]} 37. Rxd5 {[%clk
0:01:06.9]} 37... bxc4 {[%clk 0:01:23.3]} 38. Rc5 {[%clk 0:01:05.7]} 38... Kd6
{[%clk 0:01:23.7]} 39. Rxc4 {[%clk 0:01:05.6]} 39... c5 {[%clk 0:01:24.5]} 40.
Kf4 {[%clk 0:01:05.2]} 40... Kd5 {[%clk 0:01:24.8]} 41. Rc3 {[%clk 0:01:05.4]}
41... Kd4 {[%clk 0:01:24.6]} 42. g5 {[%clk 0:01:05.2]} 42... Rh8 {[%clk
0:01:24]} 43. f6 {[%clk 0:01:05.1]} 43... Rh2 {[%clk 0:01:22.9]} 44. Rb3 {[%clk
0:00:59.3]} 44... c4 {[%clk 0:01:21.8]} 45. Rb7 {[%clk 0:00:58.6]} 45... a5
{[%clk 0:01:20.8]} 46. Kf5 {[%clk 0:00:56.5]} 46... a4 {[%clk 0:01:20]} 47. f7
{[%clk 0:00:56.3]} 47... a3 {[%clk 0:01:19.9]} 48. bxa3 {[%clk 0:00:55.9]} 48...
c3 {[%clk 0:01:19.6]} 49. Kg6 {[%clk 0:00:54.4]} 49... Rf2 {[%clk 0:01:18.7]}
50. Kg7 {[%clk 0:00:52.7]} 50... c2 {[%clk 0:01:19.2]} 51. Rc7 {[%clk
0:00:52.2]} 51... Ke5 {[%clk 0:01:19.3]} 52. f8=Q {[%clk 0:00:50]} 1-0

[Event "Late-Titled-Tuesday-Blitz-May-28-2024"]
[Site "Chess.com"]
[Date "2024.05.28"]
[Round "11"]
[White "egnfanclub"]
[Black "ural58"]
[Result "1-0"]
[WhiteElo "2339"]
[BlackElo "2412"]
[TimeControl "180+1"]
[EndTime "16:04:18 PDT"]
[Termination "egnfanclub won on time"]

1. e4 {[%clk 0:03:00.9]} 1... d5 {[%clk 0:02:35]} 2. exd5 {[%clk 0:03:00.2]}
2... Qxd5 {[%clk 0:02:34.9]} 3. Nc3 {[%clk 0:02:59.9]} 3... Qa5 {[%clk
0:02:34.8]} 4. Bc4 {[%clk 0:02:59.3]} 4... Nf6 {[%clk 0:02:33.8]} 5. d3 {[%clk
0:02:58.5]} 5... Bg4 {[%clk 0:02:32.2]} 6. f3 {[%clk 0:02:56.4]} 6... Be6 {[%clk
0:02:32]} 7. Bxe6 {[%clk 0:02:54.8]} 7... fxe6 {[%clk 0:02:30.8]} 8. Qe2 {[%clk
0:02:55]} 8... Nc6 {[%clk 0:02:30.1]} 9. Be3 {[%clk 0:02:46.4]} 9... Nd5 {[%clk
0:02:28.3]} 10. Bd2 {[%clk 0:02:36.1]} 10... Nd4 {[%clk 0:02:28]} 11. Qd1 {[%clk
0:02:36.4]} 11... Nb4 {[%clk 0:02:27.5]} 12. Rc1 {[%clk 0:02:34.9]} 12... O-O-O
{[%clk 0:02:21.5]} 13. a3 {[%clk 0:02:28.7]} 13... Ndxc2+ {[%clk 0:02:10.3]} 14.
Rxc2 {[%clk 0:02:27.3]} 14... Nxc2+ {[%clk 0:02:00.8]} 15. Qxc2 {[%clk
0:02:28.2]} 15... Qa6 {[%clk 0:01:57.4]} 16. Nge2 {[%clk 0:02:04.3]} 16... Qxd3
{[%clk 0:01:56.2]} 17. Qxd3 {[%clk 0:02:03.7]} 17... Rxd3 {[%clk 0:01:55.8]} 18.
Nf4 {[%clk 0:02:04]} 18... Rd6 {[%clk 0:01:54.9]} 19. Ne4 {[%clk 0:01:58.9]}
19... Rc6 {[%clk 0:01:49.1]} 20. Bc3 {[%clk 0:01:52.8]} 20... Rg8 {[%clk
0:01:41.6]} 21. Ng5 {[%clk 0:01:42.4]} 21... h6 {[%clk 0:01:36]} 22. Ngxe6
{[%clk 0:01:42.4]} 22... g5 {[%clk 0:01:36.1]} 23. Nd4 {[%clk 0:00:59]} 1-0

[Event "Late-Titled-Tuesday-Blitz-May-28-2024"]
[Site "Chess.com"]
[Date "2024.05.28"]
[Round "11"]
[White "Abduzhaparov"]
[Black "Alphafischer2019"]
[Result "1/2-1/2"]
[WhiteElo "2521"]
[BlackElo "2659"]
[TimeControl "180+1"]
[EndTime "16:04:23 PDT"]
[Termination "Game drawn by repetition"]

1. Nf3 {[%clk 0:03:00.9]} 1... Nf6 {[%clk 0:03:00.1]} 2. c4 {[%clk 0:03:01.8]}
2... b6 {[%clk 0:02:59.2]} 3. g3 {[%clk 0:03:01.3]} 3... Bb7 {[%clk 0:02:59.6]}
4. Bg2 {[%clk 0:03:01.9]} 4... g6 {[%clk 0:03:00.4]} 5. Nc3 {[%clk 0:03:01.8]}
5... Bg7 {[%clk 0:03:00.4]} 6. O-O {[%clk 0:03:02]} 6... O-O {[%clk 0:03:00.3]}
7. Re1 {[%clk 0:03:02.1]} 7... c5 {[%clk 0:02:59.2]} 8. e4 {[%clk 0:03:01.6]}
8... d6 {[%clk 0:02:59.3]} 9. d4 {[%clk 0:03:00.9]} 9... cxd4 {[%clk 0:03:00.2]}
10. Nxd4 {[%clk 0:03:01.1]} 10... Qc8 {[%clk 0:02:57.9]} 11. b3 {[%clk
0:02:57.5]} 11... Nbd7 {[%clk 0:02:58.5]} 12. Bb2 {[%clk 0:02:55]} 12... Nc5
{[%clk 0:02:58.9]} 13. Qd2 {[%clk 0:02:52.5]} 13... a6 {[%clk 0:02:58.2]} 14.
Rad1 {[%clk 0:02:52.2]} 14... Ra7 {[%clk 0:02:58.3]} 15. h3 {[%clk 0:02:48.2]}
15... Qa8 {[%clk 0:02:57.9]} 16. Nd5 {[%clk 0:02:36.3]} 16... Bxd5 {[%clk
0:02:52.1]} 17. exd5 {[%clk 0:02:34]} 17... Rc7 {[%clk 0:02:51.4]} 18. Nc6
{[%clk 0:02:30.9]} 18... Qb7 {[%clk 0:02:52.1]} 19. Re2 {[%clk 0:02:17.2]} 19...
Re8 {[%clk 0:02:49.8]} 20. Rde1 {[%clk 0:02:16.6]} 20... Kf8 {[%clk 0:02:49.3]}
21. Qf4 {[%clk 0:02:04.4]} 21... b5 {[%clk 0:02:31.6]} 22. Qh4 {[%clk
0:01:27.7]} 22... Nd3 {[%clk 0:02:28.8]} 23. Bxf6 {[%clk 0:01:02.6]} 23... Bxf6
{[%clk 0:02:27.3]} 24. Qxf6 {[%clk 0:00:49.2]} 24... exf6 {[%clk 0:02:28.2]} 25.
Rxe8+ {[%clk 0:00:49.4]} 25... Kg7 {[%clk 0:02:28.9]} 26. R1e3 {[%clk
0:00:46.1]} 26... Ne5 {[%clk 0:02:28.8]} 27. Rb8 {[%clk 0:00:44.9]} 27... Qxb8
{[%clk 0:02:04.7]} 28. Nxb8 {[%clk 0:00:45.8]} 28... bxc4 {[%clk 0:02:05.1]} 29.
bxc4 {[%clk 0:00:45.4]} 29... Rxc4 {[%clk 0:02:04.1]} 30. Nc6 {[%clk 0:00:44.1]}
30... Rc1+ {[%clk 0:02:01.7]} 31. Kh2 {[%clk 0:00:44.3]} 31... Nc4 {[%clk
0:01:57.9]} 32. Re7 {[%clk 0:00:43.9]} 32... Rc2 {[%clk 0:01:57.3]} 33. Nd8
{[%clk 0:00:42.9]} 33... Rxf2 {[%clk 0:01:57.2]} 34. Rxf7+ {[%clk 0:00:41.3]}
34... Kg8 {[%clk 0:01:54.4]} 35. Re7 {[%clk 0:00:39.2]} 35... Rxa2 {[%clk
0:01:53.4]} 36. Ne6 {[%clk 0:00:36.6]} 36... Ne3 {[%clk 0:01:44.8]} 37. Rg7+
{[%clk 0:00:29.1]} 37... Kh8 {[%clk 0:01:42.9]} 38. Re7 {[%clk 0:00:24.1]} 38...
Rxg2+ {[%clk 0:01:39.1]} 39. Kh1 {[%clk 0:00:24]} 39... h5 {[%clk 0:01:39.8]}
40. Re8+ {[%clk 0:00:20.4]} 40... Kh7 {[%clk 0:01:39.3]} 41. Nf8+ {[%clk
0:00:20.6]} 41... Kg7 {[%clk 0:01:38.9]} 42. Rxe3 {[%clk 0:00:21.5]} 42... Rd2
{[%clk 0:01:36.7]} 43. Ne6+ {[%clk 0:00:20.2]} 43... Kf7 {[%clk 0:01:37.2]} 44.
Nd8+ {[%clk 0:00:19.6]} 44... Kf8 {[%clk 0:01:36.6]} 45. Ne6+ {[%clk 0:00:16.8]}
45... Kf7 {[%clk 0:01:36.3]} 46. Nc7 {[%clk 0:00:16.6]} 46... Rc2 {[%clk
0:01:35.5]} 47. Ne6 {[%clk 0:00:16.4]} 47... Rd2 {[%clk 0:01:31.2]} 1/2-1/2

[Event "Late-Titled-Tuesday-Blitz-May-28-2024"]
[Site "Chess.com"]
[Date "2024.05.28"]
[Round "11"]
[White "jcibarra"]
[Black "karinachess1"]
[Result "1-0"]
[WhiteElo "2891"]
[BlackElo "2655"]
[TimeControl "180+1"]
[EndTime "16:04:24 PDT"]
[Termination "jcibarra won by resignation"]

1. d3 {[%clk 0:03:00.2]} 1... d5 {[%clk 0:02:58.6]} 2. e4 {[%clk 0:02:53.9]}
2... e5 {[%clk 0:02:52]} 3. Nf3 {[%clk 0:02:52.6]} 3... Nc6 {[%clk 0:02:51.8]}
4. exd5 {[%clk 0:02:52.1]} 4... Qxd5 {[%clk 0:02:52.7]} 5. a3 {[%clk 0:02:50.3]}
5... Nf6 {[%clk 0:02:50.6]} 6. Nc3 {[%clk 0:02:50.3]} 6... Qd8 {[%clk
0:02:50.9]} 7. g3 {[%clk 0:02:49]} 7... Be7 {[%clk 0:02:43.4]} 8. Bg2 {[%clk
0:02:49]} 8... O-O {[%clk 0:02:44]} 9. O-O {[%clk 0:02:49.2]} 9... Re8 {[%clk
0:02:44.6]} 10. Re1 {[%clk 0:02:48.8]} 10... Bf8 {[%clk 0:02:44.9]} 11. h3
{[%clk 0:02:45]} 11... h6 {[%clk 0:02:44.1]} 12. Ra2 {[%clk 0:02:44.3]} 12...
Be6 {[%clk 0:02:31.6]} 13. Ra1 {[%clk 0:02:43.9]} 13... Bd6 {[%clk 0:02:26.5]}
14. b4 {[%clk 0:02:42.2]} 14... a6 {[%clk 0:02:21.8]} 15. Bb2 {[%clk 0:02:41.6]}
15... Qd7 {[%clk 0:02:18.4]} 16. Kh2 {[%clk 0:02:41.5]} 16... Rad8 {[%clk
0:02:07.4]} 17. Na4 {[%clk 0:02:36.5]} 17... Bf5 {[%clk 0:01:59.2]} 18. Nd2
{[%clk 0:02:03.8]} 18... Nd4 {[%clk 0:01:47.8]} 19. Nc5 {[%clk 0:02:00.9]} 19...
Bxc5 {[%clk 0:01:42.5]} 20. bxc5 {[%clk 0:02:01.8]} 20... c6 {[%clk 0:01:19.1]}
21. Nc4 {[%clk 0:01:55.3]} 21... Qc7 {[%clk 0:00:58.7]} 22. Nd6 {[%clk
0:01:50.9]} 22... Rxd6 {[%clk 0:00:59]} 23. cxd6 {[%clk 0:01:51.8]} 23... Qxd6
{[%clk 0:00:59.8]} 24. Qd2 {[%clk 0:01:47.7]} 24... b6 {[%clk 0:00:47.9]} 25.
Bxd4 {[%clk 0:01:37]} 25... exd4 {[%clk 0:00:39.4]} 26. Rxe8+ {[%clk 0:01:36.5]}
26... Nxe8 {[%clk 0:00:40.3]} 27. Re1 {[%clk 0:01:32.8]} 27... Nf6 {[%clk
0:00:40.2]} 28. Qf4 {[%clk 0:01:30.2]} 28... Qc5 {[%clk 0:00:36.5]} 29. Re5
{[%clk 0:01:28.1]} 29... Qxc2 {[%clk 0:00:22.1]} 30. Qxf5 {[%clk 0:01:27.1]}
30... c5 {[%clk 0:00:18.6]} 31. Bd5 {[%clk 0:01:19.7]} 31... Qb2 {[%clk
0:00:09.4]} 32. Re8+ {[%clk 0:01:08.2]} 32... Nxe8 {[%clk 0:00:08.6]} 33. Qxf7+
{[%clk 0:01:08]} 33... Kh7 {[%clk 0:00:08.9]} 34. Be4+ {[%clk 0:01:07.6]} 1-0

[Event "Late-Titled-Tuesday-Blitz-May-28-2024"]
[Site "Chess.com"]
[Date "2024.05.28"]
[Round "11"]
[White "PhileKhoob"]
[Black "Cambek64"]
[Result "0-1"]
[WhiteElo "2347"]
[BlackElo "2529"]
[TimeControl "180+1"]
[EndTime "16:04:24 PDT"]
[Termination "Cambek64 won by checkmate"]

1. Nf3 {[%clk 0:03:00.9]} 1... b5 {[%clk 0:02:58.7]} 2. g3 {[%clk 0:02:57.7]}
2... Bb7 {[%clk 0:02:59]} 3. Bg2 {[%clk 0:02:58]} 3... Nf6 {[%clk 0:02:59.2]} 4.
Na3 {[%clk 0:02:57.1]} 4... a6 {[%clk 0:02:58.2]} 5. c4 {[%clk 0:02:55.6]} 5...
b4 {[%clk 0:02:58.5]} 6. Nc2 {[%clk 0:02:55]} 6... c5 {[%clk 0:02:58.4]} 7. a3
{[%clk 0:02:40.4]} 7... a5 {[%clk 0:02:57.4]} 8. axb4 {[%clk 0:02:34.3]} 8...
axb4 {[%clk 0:02:57.8]} 9. Rxa8 {[%clk 0:02:34.1]} 9... Bxa8 {[%clk 0:02:58.2]}
10. O-O {[%clk 0:02:33.1]} 10... e6 {[%clk 0:02:58.1]} 11. d4 {[%clk 0:02:11.6]}
11... Be7 {[%clk 0:02:48.2]} 12. e3 {[%clk 0:01:58]} 12... Qb6 {[%clk
0:02:45.5]} 13. b3 {[%clk 0:01:53.5]} 13... d6 {[%clk 0:02:44.8]} 14. Bb2 {[%clk
0:01:51.4]} 14... Nbd7 {[%clk 0:02:45.3]} 15. d5 {[%clk 0:01:41.1]} 15... exd5
{[%clk 0:02:39.2]} 16. Nh4 {[%clk 0:01:40.3]} 16... g6 {[%clk 0:02:35.5]} 17.
cxd5 {[%clk 0:01:33.8]} 17... O-O {[%clk 0:02:35.1]} 18. e4 {[%clk 0:01:28.1]}
18... Bb7 {[%clk 0:02:31.5]} 19. Re1 {[%clk 0:01:27.4]} 19... Ne5 {[%clk
0:02:26]} 20. f4 {[%clk 0:01:22.5]} 20... Neg4 {[%clk 0:02:24.2]} 21. h3 {[%clk
0:01:14.2]} 21... Nh6 {[%clk 0:02:24.3]} 22. e5 {[%clk 0:01:09.9]} 22... Nh5
{[%clk 0:02:10]} 23. Qd3 {[%clk 0:00:51.3]} 23... Bxh4 {[%clk 0:02:05]} 24. gxh4
{[%clk 0:00:50.5]} 24... Nxf4 {[%clk 0:02:05.1]} 25. Qe3 {[%clk 0:00:45]} 25...
Nxg2 {[%clk 0:02:03.8]} 26. Qxh6 {[%clk 0:00:43.7]} 26... Nxe1 {[%clk
0:02:04.1]} 27. e6 {[%clk 0:00:34.2]} 27... c4+ {[%clk 0:01:49.6]} 28. Kf1
{[%clk 0:00:26.9]} 28... fxe6+ {[%clk 0:01:45.2]} 29. Kxe1 {[%clk 0:00:18.7]}
29... Qg1+ {[%clk 0:01:43.8]} 30. Ke2 {[%clk 0:00:13.5]} 30... Rf2+ {[%clk
0:01:40.3]} 31. Ke3 {[%clk 0:00:13.3]} 31... Rxc2+ {[%clk 0:01:35.5]} 32. Kf4
{[%clk 0:00:10.6]} 32... Rf2+ {[%clk 0:01:33.3]} 33. Ke4 {[%clk 0:00:09.1]}
33... Bxd5+ {[%clk 0:01:29.8]} 34. Kd4 {[%clk 0:00:06.2]} 34... Qd1+ {[%clk
0:01:27.9]} 35. Ke3 {[%clk 0:00:03.9]} 35... Qd2# {[%clk 0:01:27.1]} 0-1

[Event "Late-Titled-Tuesday-Blitz-May-28-2024"]
[Site "Chess.com"]
[Date "2024.05.28"]
[Round "11"]
[White "chess_sharparchitect"]
[Black "Iuckyducky"]
[Result "0-1"]
[WhiteElo "2321"]
[BlackElo "2258"]
[TimeControl "180+1"]
[EndTime "16:04:24 PDT"]
[Termination "Iuckyducky won by resignation"]

1. c4 {[%clk 0:03:00.9]} 1... e5 {[%clk 0:02:56.9]} 2. Nc3 {[%clk 0:03:00.9]}
2... Nc6 {[%clk 0:02:56.7]} 3. Nf3 {[%clk 0:03:00.8]} 3... Nf6 {[%clk
0:02:57.2]} 4. e3 {[%clk 0:02:59.1]} 4... d6 {[%clk 0:02:56]} 5. d4 {[%clk
0:02:58.5]} 5... Bd7 {[%clk 0:02:45.5]} 6. d5 {[%clk 0:02:47.6]} 6... Ne7 {[%clk
0:02:43.1]} 7. e4 {[%clk 0:02:30.7]} 7... g6 {[%clk 0:02:38.3]} 8. h3 {[%clk
0:02:22.8]} 8... Bg7 {[%clk 0:02:34.8]} 9. Be3 {[%clk 0:02:22.4]} 9... O-O
{[%clk 0:02:32.1]} 10. g4 {[%clk 0:02:15.9]} 10... Ne8 {[%clk 0:02:29.3]} 11.
Nd2 {[%clk 0:01:53.9]} 11... f5 {[%clk 0:02:21.4]} 12. f3 {[%clk 0:01:43.6]}
12... fxe4 {[%clk 0:02:11.2]} 13. Ncxe4 {[%clk 0:01:41.9]} 13... c6 {[%clk
0:02:07.2]} 14. dxc6 {[%clk 0:01:32.1]} 14... Bxc6 {[%clk 0:02:04.8]} 15. Bg2
{[%clk 0:01:28.6]} 15... d5 {[%clk 0:01:52.9]} 16. cxd5 {[%clk 0:01:20.3]} 16...
Nxd5 {[%clk 0:01:53.8]} 17. Bc5 {[%clk 0:01:14]} 17... Qh4+ {[%clk 0:01:45.2]}
18. Bf2 {[%clk 0:01:12.8]} 18... Qd8 {[%clk 0:01:40]} 19. O-O {[%clk 0:01:10.6]}
19... Nf4 {[%clk 0:01:38.7]} 20. Nc4 {[%clk 0:00:53]} 20... Qc7 {[%clk
0:01:19.9]} 21. Rc1 {[%clk 0:00:47.5]} 21... Rd8 {[%clk 0:01:09.3]} 22. Qc2
{[%clk 0:00:37]} 22... Kh8 {[%clk 0:00:54.3]} 23. Kh2 {[%clk 0:00:34.8]} 23...
Qf7 {[%clk 0:00:39.6]} 24. b3 {[%clk 0:00:27.4]} 24... Nxg2 {[%clk 0:00:38.2]}
25. Kxg2 {[%clk 0:00:25.2]} 25... Qxf3+ {[%clk 0:00:37.9]} 0-1

[Event "Late-Titled-Tuesday-Blitz-May-28-2024"]
[Site "Chess.com"]
[Date "2024.05.28"]
[Round "11"]
[White "mostafa_sakha"]
[Black "Dacean99"]
[Result "0-1"]
[WhiteElo "2394"]
[BlackElo "2603"]
[TimeControl "180+1"]
[EndTime "16:04:26 PDT"]
[Termination "Dacean99 won by resignation"]

1. d4 {[%clk 0:03:00]} 1... d6 {[%clk 0:02:56.4]} 2. e4 {[%clk 0:02:59.7]} 2...
Nf6 {[%clk 0:02:56.5]} 3. Nc3 {[%clk 0:02:59.5]} 3... g6 {[%clk 0:02:57.1]} 4.
Nf3 {[%clk 0:02:59.4]} 4... Bg7 {[%clk 0:02:57.6]} 5. Be2 {[%clk 0:02:59.9]}
5... O-O {[%clk 0:02:57.6]} 6. O-O {[%clk 0:03:00.5]} 6... a6 {[%clk 0:02:57.5]}
7. a4 {[%clk 0:03:00]} 7... Nc6 {[%clk 0:02:57.8]} 8. d5 {[%clk 0:02:59.3]} 8...
Nb4 {[%clk 0:02:57.5]} 9. a5 {[%clk 0:02:57.1]} 9... e6 {[%clk 0:02:56]} 10.
dxe6 {[%clk 0:02:53.9]} 10... Bxe6 {[%clk 0:02:53.9]} 11. Bf4 {[%clk 0:02:45.6]}
11... Re8 {[%clk 0:02:50.2]} 12. Re1 {[%clk 0:02:37.7]} 12... Qd7 {[%clk
0:02:43.2]} 13. Ra4 {[%clk 0:02:21]} 13... Nh5 {[%clk 0:02:31.9]} 14. Bc1 {[%clk
0:02:05.7]} 14... Bxc3 {[%clk 0:02:28.9]} 15. bxc3 {[%clk 0:02:02]} 15... Qxa4
{[%clk 0:02:28.9]} 16. cxb4 {[%clk 0:02:01.9]} 16... Qxb4 {[%clk 0:02:27.2]} 17.
Nd4 {[%clk 0:01:58.9]} 17... Nf6 {[%clk 0:02:24.3]} 18. f3 {[%clk 0:01:42.2]}
18... Bc4 {[%clk 0:02:21.9]} 19. Bg5 {[%clk 0:01:30.1]} 19... Bxe2 {[%clk
0:02:18.4]} 20. Rxe2 {[%clk 0:01:23.4]} 20... Nd7 {[%clk 0:02:16.7]} 21. h4
{[%clk 0:01:00]} 21... Qxa5 {[%clk 0:02:11.2]} 22. Qf1 {[%clk 0:00:48.7]} 22...
Nc5 {[%clk 0:02:06.5]} 23. Qf2 {[%clk 0:00:44.9]} 23... Ne6 {[%clk 0:02:06.3]}
24. Be3 {[%clk 0:00:42.1]} 24... Nxd4 {[%clk 0:02:03.1]} 25. Bxd4 {[%clk
0:00:41.8]} 25... Re6 {[%clk 0:01:59]} 26. Kh2 {[%clk 0:00:36.6]} 26... Rae8
{[%clk 0:01:57.3]} 27. Qg3 {[%clk 0:00:35.8]} 27... h5 {[%clk 0:01:48.6]} 28.
Qf4 {[%clk 0:00:33.7]} 28... Re5 {[%clk 0:01:23.6]} 29. Bxe5 {[%clk 0:00:30.5]}
29... Qxe5 {[%clk 0:01:24.5]} 30. Kg3 {[%clk 0:00:29.3]} 30... a5 {[%clk
0:01:23.7]} 31. Re3 {[%clk 0:00:25.4]} 31... a4 {[%clk 0:01:23]} 32. c4 {[%clk
0:00:22.5]} 32... Ra8 {[%clk 0:01:20.7]} 33. Ra3 {[%clk 0:00:21.3]} 33... c6
{[%clk 0:01:19.2]} 34. c5 {[%clk 0:00:17.7]} 34... Qxf4+ {[%clk 0:01:18.4]} 35.
Kxf4 {[%clk 0:00:17.2]} 35... dxc5 {[%clk 0:01:19]} 36. Ke5 {[%clk 0:00:16]}
36... b5 {[%clk 0:01:17.9]} 37. Kd6 {[%clk 0:00:16.4]} 37... b4 {[%clk
0:01:18.5]} 38. Ra1 {[%clk 0:00:16.6]} 38... b3 {[%clk 0:01:18.4]} 39. Kxc5
{[%clk 0:00:17.1]} 39... b2 {[%clk 0:01:18.8]} 0-1

[Event "Late-Titled-Tuesday-Blitz-May-28-2024"]
[Site "Chess.com"]
[Date "2024.05.28"]
[Round "11"]
[White "jaskol95"]
[Black "dawid498"]
[Result "1-0"]
[WhiteElo "2565"]
[BlackElo "2657"]
[TimeControl "180+1"]
[EndTime "16:04:27 PDT"]
[Termination "jaskol95 won on time"]

1. e4 {[%clk 0:02:48.4]} 1... g6 {[%clk 0:03:00.2]} 2. d4 {[%clk 0:02:48.1]}
2... Bg7 {[%clk 0:03:00.8]} 3. Nc3 {[%clk 0:02:48.1]} 3... c6 {[%clk 0:03:01.1]}
4. Nf3 {[%clk 0:02:41.2]} 4... d5 {[%clk 0:03:01.2]} 5. e5 {[%clk 0:02:41.5]}
5... Bg4 {[%clk 0:03:00.2]} 6. h3 {[%clk 0:02:41.6]} 6... Bxf3 {[%clk
0:02:59.6]} 7. Qxf3 {[%clk 0:02:42.5]} 7... f6 {[%clk 0:02:49.6]} 8. Bf4 {[%clk
0:02:39.3]} 8... e6 {[%clk 0:02:31]} 9. O-O-O {[%clk 0:02:37.2]} 9... fxe5
{[%clk 0:02:29.5]} 10. dxe5 {[%clk 0:02:35.1]} 10... Nd7 {[%clk 0:02:13.1]} 11.
Bd3 {[%clk 0:02:24.9]} 11... Ne7 {[%clk 0:01:27.4]} 12. Qg4 {[%clk 0:02:08.3]}
12... Nc5 {[%clk 0:01:01.4]} 13. Bg5 {[%clk 0:01:55.3]} 13... Qd7 {[%clk
0:00:36.7]} 14. Qb4 {[%clk 0:01:37.4]} 14... b6 {[%clk 0:00:32]} 15. Bf6 {[%clk
0:01:28.1]} 15... O-O {[%clk 0:00:29.4]} 16. Qh4 {[%clk 0:01:24.9]} 16... Bxf6
{[%clk 0:00:25.2]} 17. exf6 {[%clk 0:01:25.3]} 17... Nf5 {[%clk 0:00:25.9]} 18.
Bxf5 {[%clk 0:01:25.7]} 18... exf5 {[%clk 0:00:25.5]} 19. g4 {[%clk 0:01:24.5]}
19... Ne4 {[%clk 0:00:20]} 20. Nxe4 {[%clk 0:01:16.3]} 20... fxe4 {[%clk
0:00:20.9]} 21. g5 {[%clk 0:01:17]} 21... Qf5 {[%clk 0:00:15.1]} 22. Qh6 {[%clk
0:01:10.7]} 22... Rf7 {[%clk 0:00:14.8]} 23. h4 {[%clk 0:01:11.3]} 23... d4
{[%clk 0:00:03]} 24. Rxd4 {[%clk 0:01:02.3]} 24... Qxf2 {[%clk 0:00:01.6]} 25.
Rhd1 {[%clk 0:01:00]} 25... Raf8 {[%clk 0:00:01.7]} 26. Rd7 {[%clk 0:00:56.2]}
26... Qf4+ {[%clk 0:00:01]} 27. Kb1 {[%clk 0:00:56.7]} 1-0

[Event "Late-Titled-Tuesday-Blitz-May-28-2024"]
[Site "Chess.com"]
[Date "2024.05.28"]
[Round "11"]
[White "dennisodessa"]
[Black "Tibmat"]
[Result "1-0"]
[WhiteElo "2564"]
[BlackElo "2656"]
[TimeControl "180+1"]
[EndTime "16:04:31 PDT"]
[Termination "dennisodessa won by checkmate"]

1. d4 {[%clk 0:03:00.6]} 1... d6 {[%clk 0:03:00.9]} 2. c4 {[%clk 0:03:00.9]}
2... e5 {[%clk 0:03:00.2]} 3. d5 {[%clk 0:03:00.8]} 3... g6 {[%clk 0:02:57.7]}
4. e4 {[%clk 0:03:01]} 4... a5 {[%clk 0:02:58]} 5. Nc3 {[%clk 0:03:01.9]} 5...
Na6 {[%clk 0:02:55.3]} 6. Bd3 {[%clk 0:03:02.8]} 6... Bh6 {[%clk 0:02:54.8]} 7.
Bxh6 {[%clk 0:02:56.5]} 7... Nxh6 {[%clk 0:02:55.7]} 8. Qd2 {[%clk 0:02:57.2]}
8... Ng4 {[%clk 0:02:52.2]} 9. f3 {[%clk 0:02:53.8]} 9... Nf6 {[%clk 0:02:50.8]}
10. Nge2 {[%clk 0:02:46.5]} 10... O-O {[%clk 0:02:47.7]} 11. O-O-O {[%clk
0:02:40.4]} 11... Nc5 {[%clk 0:02:44.1]} 12. g4 {[%clk 0:02:40.8]} 12... c6
{[%clk 0:02:43.3]} 13. Ng3 {[%clk 0:02:16.4]} 13... cxd5 {[%clk 0:02:42.9]} 14.
exd5 {[%clk 0:02:17.3]} 14... a4 {[%clk 0:02:37.7]} 15. h4 {[%clk 0:02:15.8]}
15... Qa5 {[%clk 0:02:36.3]} 16. h5 {[%clk 0:02:13.8]} 16... a3 {[%clk
0:02:31.2]} 17. b3 {[%clk 0:02:13.8]} 17... Bd7 {[%clk 0:02:23.4]} 18. Kb1
{[%clk 0:01:59.6]} 18... Rac8 {[%clk 0:02:16.4]} 19. Nce4 {[%clk 0:01:49.1]}
19... Qxd2 {[%clk 0:01:57.4]} 20. Nxf6+ {[%clk 0:01:47.3]} 20... Kg7 {[%clk
0:01:58.1]} 21. Rxd2 {[%clk 0:01:43]} 21... Kxf6 {[%clk 0:01:57.9]} 22. Be2
{[%clk 0:01:11.6]} 22... Kg5 {[%clk 0:01:52.8]} 23. b4 {[%clk 0:00:54.9]} 23...
Na4 {[%clk 0:01:51.2]} 24. Ne4+ {[%clk 0:00:55.1]} 24... Kf4 {[%clk 0:01:51.6]}
25. g5 {[%clk 0:00:51.7]} 25... Bf5 {[%clk 0:01:44.5]} 26. Rh4+ {[%clk
0:00:25.7]} 26... Ke3 {[%clk 0:01:44.1]} 27. Kc1 {[%clk 0:00:26.1]} 27... Rfd8
{[%clk 0:01:04.9]} 28. Kc2 {[%clk 0:00:08.1]} 28... b5 {[%clk 0:01:03]} 29. Rd3+
{[%clk 0:00:08.2]} 29... Kxe2 {[%clk 0:00:53.5]} 30. Rh2+ {[%clk 0:00:09.1]}
30... Kf1 {[%clk 0:00:51.5]} 31. Rd1# {[%clk 0:00:10]} 1-0